fUST/lending_fUST_20240412
["ID","MTS","AMOUNT","RATE_DAILY","PERIOD"]
[322213309,1712875841293,-500.0,0.00027671,2]
[322213310,1712875841302,-1806.3958485,0.00027671,2]
[322213311,1712875841316,-1196.8841515,0.00027671,2]
[322213312,1712875841326,-500.0,0.00027671,2]
[322213313,1712875841335,-500.0,0.00027671,2]
[322213314,1712875841345,-500.0,0.00027671,2]
[322213315,1712875841355,-500.0,0.00027671,2]
[322213316,1712875841365,-500.0,0.00027671,2]
[322213317,1712875841375,-560.57599404,0.00027671,2]
[322213318,1712875841390,-1573.21400596,0.00027671,2]
[322213319,1712875841401,-487.89887632,0.00027671,2]
[322213320,1712875841414,-25.99000638,0.00027671,2]
[322213321,1712875841423,-295.42346276,0.00027671,2]
[322213322,1712875841434,-1412.3,0.00027671,2]
[322213323,1712875841443,-4683.06,0.00027671,2]
[322213324,1712875841454,-4060.80082004,0.00027671,2]
[322213325,1712875841467,-467.18062958,0.00027671,2]
[322213348,1712875843566,-2289.12,0.00027397,2]
[322213349,1712875843575,-1532.70855038,0.00027671,2]
[322213350,1712875843586,-500.0,0.00027671,2]
[322213351,1712875843597,-500.0,0.00027671,2]
[322213352,1712875843607,-1319.95,0.00027671,2]
[322213353,1712875843617,-500.0,0.00027671,2]
[322213354,1712875843628,-11873.43,0.00027671,2]
[322213355,1712875843638,-185.705228,0.00027671,2]
[322213356,1712875843648,-500.0,0.00027671,2]
[322213357,1712875843658,-185.705228,0.00027671,2]
[322213358,1712875843668,-1103.0,0.00027671,2]
[322213359,1712875843678,-157.288466,0.00027671,2]
[322213360,1712875843687,-500.0,0.00027671,2]
[322213361,1712875843696,-428.44114347,0.00027671,2]
[322213362,1712875843705,-606.73,0.00027671,2]
[322213363,1712875843714,-500.0,0.00027671,2]
[322213364,1712875843723,-500.0,0.00027671,2]
[322213365,1712875843732,-1162.96,0.00027671,2]
[322213366,1712875843741,-500.0,0.00027671,2]
[322213367,1712875843751,-763.75,0.00027671,2]
[322213368,1712875843762,-2746.2,0.00027671,2]
[322213369,1712875843771,-151.0,0.00027671,2]
[322213370,1712875843781,-1602.07,0.00027671,2]
[322213371,1712875843791,-500.0,0.00027671,2]
[322213372,1712875843801,-2354.74,0.00027671,2]
[322213373,1712875843813,-500.0,0.00027671,2]
[322213374,1712875843823,-1495.89,0.00027671,2]
[322213375,1712875843832,-2289.12,0.00027671,2]
[322213376,1712875843842,-158.57133417,0.00027708,2]
[322213377,1712875843850,-154.4409899,0.00027737,2]
[322213378,1712875843860,-158.57133417,0.00027845,2]
[322213379,1712875843869,-306.0,0.000279,2]
[322213380,1712875843880,-168.563655,0.000279,2]
[322213381,1712875843890,-586.0,0.000279,2]
[322213382,1712875843899,-703.07725515,0.00027944,2]
[322213383,1712875843910,-500.0,0.00027944,2]
[322213384,1712875843920,-500.0,0.00027945,2]
[322213385,1712875843929,-500.0,0.00027945,2]
[322213386,1712875843939,-727.6,0.00027945,2]
[322213387,1712875843949,-151.0,0.00027945,2]
[322213388,1712875843959,-151.0,0.00027945,2]
[322213389,1712875843969,-695.06,0.00027945,2]
[322213390,1712875843978,-493.25662401,0.00027945,2]
[322213391,1712875843988,-151.0,0.00027945,2]
[322213392,1712875843997,-151.0,0.00027945,2]
[322213393,1712875844006,-151.0,0.00027945,2]
[322213394,1712875844015,-151.0,0.00027945,2]
[322213395,1712875844024,-151.0,0.00027945,2]
[322213396,1712875844033,-151.0,0.00027945,2]
[322213397,1712875844042,-500.0,0.00027945,2]
[322213398,1712875844052,-500.0,0.00027945,2]
[322213399,1712875844063,-1856.6,0.00027945,2]
[322213400,1712875844073,-500.0,0.00027945,2]
[322213401,1712875844154,-360.99868882,0.00027945,2]
[322213402,1712875844165,-500.0,0.00027945,2]
[322213403,1712875844175,-376.622282,0.00027945,2]
[322213404,1712875844184,-376.622282,0.00027945,2]
[322213405,1712875844193,-376.622282,0.00027945,2]
[322213406,1712875844203,-376.622282,0.00027945,2]
[322213407,1712875844213,-500.0,0.00027945,2]
[322213408,1712875844222,-336.52085965,0.00027945,2]
[322213409,1712875844231,-512.3,0.00027945,2]
[322213410,1712875844241,-151.0,0.00027945,2]
[322213411,1712875844251,-151.0,0.00027945,2]
[322213412,1712875844260,-500.0,0.00027945,2]
[322213413,1712875844269,-500.0,0.00027945,2]
[322213414,1712875844278,-500.0,0.00027945,2]
[322213415,1712875844286,-500.0,0.00027945,2]
[322213416,1712875844296,-500.0,0.00027945,2]
[322213417,1712875844305,-151.0,0.00027945,2]
[322213418,1712875844314,-151.0,0.00027945,2]
[322213419,1712875844323,-552.55,0.00027945,2]
[322213420,1712875844333,-613.18,0.00027945,2]
[322213421,1712875844342,-500.0,0.00027945,2]
[322213422,1712875844351,-151.0,0.00027945,2]
[322213423,1712875844359,-151.0,0.00027945,2]
[322213424,1712875844368,-500.0,0.00027945,2]
[322213425,1712875844378,-500.0,0.00027945,2]
[322213426,1712875844387,-1527.21,0.00027945,2]
[322213427,1712875844396,-995.30911528,0.00027945,2]
[322213448,1712875846664,-700.88,0.00027397,2]
[322213449,1712875846673,-700.88,0.00027671,2]
[322213450,1712875846683,-282.13088472,0.00027945,2]
[322213451,1712875846692,-500.0,0.00027945,2]
[322213452,1712875846702,-598.95,0.00027945,2]
[322213453,1712875846712,-265.98829292,0.00027945,2]
[322213454,1712875846818,-260.02971762,0.00027945,2]
[322213455,1712875846827,-695.93,0.00027945,2]
[322213456,1712875846838,-500.0,0.00027945,2]
[322213457,1712875846847,-1051.21,0.00027945,2]
[322213458,1712875846856,-408.24663128,0.00027945,2]
[322213459,1712875846865,-410.54604089,0.00027945,2]
[322213460,1712875846874,-500.0,0.00027945,2]
[322213461,1712875846883,-500.0,0.00027945,2]
[322213462,1712875846893,-151.0,0.00027945,2]
[322213463,1712875846902,-151.0,0.00027945,2]
[322213464,1712875846911,-151.0,0.00027945,2]
[322213465,1712875846921,-151.0,0.00027945,2]
[322213466,1712875846930,-151.0,0.00027945,2]
[322213467,1712875846939,-151.0,0.00027945,2]
[322213468,1712875846948,-167.711846,0.00027945,2]
[322213469,1712875846957,-732.24,0.00027945,2]
[322213470,1712875846966,-500.0,0.00027945,2]
[322213471,1712875846975,-500.0,0.00027945,2]
[322213472,1712875846985,-500.0,0.00027945,2]
[322213473,1712875846994,-151.0,0.00027945,2]
[322213474,1712875847003,-151.0,0.00027945,2]
[322213475,1712875847013,-917.8,0.00027945,2]
[322213476,1712875847022,-151.0,0.00027945,2]
[322213477,1712875847032,-151.0,0.00027945,2]
[322213478,1712875847041,-500.0,0.00027945,2]
[322213479,1712875847050,-507.24262939,0.00027945,2]
[322213480,1712875847060,-500.0,0.00027945,2]
[322213481,1712875847072,-500.0,0.00027945,2]
[322213482,1712875847082,-500.0,0.00027945,2]
[322213483,1712875847092,-500.0,0.00027945,2]
[322213484,1712875847101,-1281.493817,0.00027945,2]
[322213485,1712875847111,-1281.493817,0.00027945,2]
[322213486,1712875847120,-1135.46,0.00027945,2]
[322213487,1712875847130,-1281.493817,0.00027945,2]
[322213488,1712875847140,-1281.493817,0.00027945,2]
[322213489,1712875847149,-432.36603,0.00027945,2]
[322213490,1712875847158,-432.36603,0.00027945,2]
[322213491,1712875847171,-151.0,0.00027945,2]
[322213492,1712875847180,-151.0,0.00027945,2]
[322213493,1712875847190,-500.0,0.00027945,2]
[322213494,1712875847199,-432.36603,0.00027945,2]
[322213495,1712875847209,-432.36603,0.00027945,2]
[322213496,1712875847218,-1095.9803982,0.00027945,2]
[322213503,1712875945844,97.76855011,0.00026024,2]
[322213510,1712876076415,7833.345449,0.00023,2]
[322213514,1712876731170,-157.34709437,0.00024981,2]
[322213515,1712876731192,-154.82968734,0.00024982,2]
[322213516,1712876731214,-154.82968734,0.00024983,2]
[322213517,1712876731236,-300.0,0.00024984,2]
[322213518,1712876731257,-154.82968734,0.00024984,2]
[322213519,1712876731280,-1917.75208221,0.00024984,2]
[322213528,1712876827097,-211.50234221,0.00024978,2]
[322213529,1712876827117,-68.83186061,0.00024979,2]
[322213530,1712876839091,-440.70718582,0.00024978,2]
[322213531,1712876854200,-188.71573999,0.00024977,2]
[322213532,1712876854221,-2800.33075209,0.00024978,2]
[322213534,1712876950165,-1714.74277071,0.00024972,2]
[322213535,1712876950186,-157.34709437,0.00024973,2]
[322213536,1712876950206,-300.0,0.00024973,2]
[322213537,1712876950227,-300.0,0.00024973,2]
[322213538,1712876950248,-2581.208065,0.00024974,2]
[322213539,1712876950268,-1964.94666504,0.00024974,2]
[322213540,1712876950290,-5786.1213342,0.00024975,2]
[322213541,1712876950312,-3719.84092639,0.00024976,2]
[322213542,1712876950332,-242.86748276,0.00025004,2]
[322213543,1712876950352,-164.048687,0.00025005,2]
[322213544,1712876950373,-6708.9648597,0.00025151,2]
[322213545,1712876950394,-2305.1347894,0.00025731,2]
[322213546,1712876950418,-66.99889381,0.00025741,2]
[322213547,1712876962089,-93.7197859,0.00025741,2]
[322213548,1712876962110,-5942.75011332,0.00025838,2]
[322213549,1712876962131,-447.5380202,0.00025845,2]
[322213550,1712876962162,-827.54838796,0.00026024,2]
[322213551,1712876962183,-160.71867969,0.00026092,2]
[322213552,1712876962205,-160.71867969,0.00026442,2]
[322213553,1712876962226,-160.71867969,0.00026793,2]
[322213555,1712877008413,645.7132767,0.00026961,2]
[322213556,1712877018383,298.35868013,0.00023738,2]
[322213567,1712877032826,-242.86748276,0.00027143,2]
[322213568,1712877032836,-160.71867969,0.00027144,2]
[322213569,1712877032845,-3719.84092639,0.00027296,2]
[322213570,1712877032854,-158.57133419,0.00027296,2]
[322213571,1712877032863,-2000.0,0.00027297,2]
[322213572,1712877032872,-300.0,0.00027393,2]
[322213573,1712877032881,-300.0,0.00027393,2]
[322213574,1712877032891,-303.42336337,0.00027394,2]
[322213575,1712877032900,-490.67957045,0.00027394,2]
[322213576,1712877032910,-1308.15892502,0.00027394,2]
[322213577,1712877032929,-221.63830907,0.00027394,2]
[322213578,1712877032942,-538.47573593,0.00027394,2]
[322213579,1712877032953,-154.82968734,0.00027394,2]
[322213580,1712877032963,-155.38716655,0.00027394,2]
[322213581,1712877032974,-159.60978228,0.00027394,2]
[322213582,1712877032985,-1584.45097755,0.00027394,2]
[322213583,1712877032996,-156.30294808,0.00027394,2]
[322213584,1712877033006,-155.69437185,0.00027394,2]
[322213585,1712877033016,-367.52809974,0.00027394,2]
[322213586,1712877033027,-213.95808583,0.00027394,2]
[322213587,1712877033038,-584.67100667,0.00027394,2]
[322213588,1712877033048,-379.20858322,0.00027394,2]
[322213589,1712877033058,-298.95072335,0.00027394,2]
[322213590,1712877033067,-278.36597163,0.00027394,2]
[322213591,1712877033077,-2120.63245232,0.00027394,2]
[322213592,1712877033087,-185.68184053,0.00027394,2]
[322213593,1712877033099,-353.86074834,0.00027394,2]
[322213594,1712877033109,-2548.40467265,0.00027394,2]
[322213595,1712877033120,-155.0,0.00027394,2]
[322213596,1712877033130,-473.43587504,0.00027394,2]
[322213597,1712877033141,-289.80982697,0.00027394,2]
[322213598,1712877033152,-303.95639067,0.00027394,2]
[322213599,1712877033163,-265.98916082,0.00027394,2]
[322213600,1712877033173,-212.52786944,0.00027394,2]
[322213601,1712877033182,-157.68017818,0.00027394,2]
[322213602,1712877033191,-248.24598955,0.00027394,2]
[322213603,1712877033201,-289.09997072,0.00027394,2]
[322213604,1712877033211,-8066.32592861,0.00027394,2]
[322213605,1712877033221,-4032.91201004,0.00027394,2]
[322213606,1712877033230,-2248.1300057,0.00027394,2]
[322213607,1712877033240,-1046.06334155,0.00027394,2]
[322213608,1712877033250,-178.90152231,0.00027394,2]
[322213609,1712877033260,-640.33470756,0.00027395,2]
[322213610,1712877033270,-156.18040776,0.00027395,2]
[322213611,1712877033281,-162.13541686,0.00027395,2]
[322213612,1712877033292,-155.79864413,0.00027395,2]
[322213613,1712877033303,-26015.27394637,0.00027396,2]
[322213627,1712877038575,-32992.97910031,0.00027396,2]
[322213628,1712877038585,-210.0,0.00027396,2]
[322213629,1712877038595,-400.83883555,0.00027396,2]
[322213630,1712877038606,-210.0,0.00027396,2]
[322213631,1712877038616,-292.35489727,0.00027396,2]
[322213632,1712877038626,-360.85132278,0.00027396,2]
[322213633,1712877038636,-410.89100692,0.00027396,2]
[322213634,1712877038645,-153.60574541,0.00027396,2]
[322213635,1712877038655,-490.0,0.00027396,2]
[322213636,1712877038664,-490.0,0.00027396,2]
[322213637,1712877038673,-503.30373975,0.00027397,2]
[322213638,1712877038682,-172.94391221,0.00027397,2]
[322213639,1712877038692,-500.0,0.00027397,2]
[322213640,1712877038701,-494.79730632,0.00027397,2]
[322213641,1712877038710,-500.0,0.00027397,2]
[322213642,1712877038719,-500.0,0.00027397,2]
[322213643,1712877038729,-295.04346083,0.00027397,2]
[322213644,1712877038739,-1859.96,0.00027397,2]
[322213645,1712877038749,-500.0,0.00027397,2]
[322213646,1712877038758,-300.1343516,0.00027397,2]
[322213647,1712877038768,-500.0,0.00027397,2]
[322213648,1712877038777,-500.0,0.00027397,2]
[322213649,1712877038786,-500.0,0.00027397,2]
[322213650,1712877038795,-500.0,0.00027397,2]
[322213651,1712877038804,-500.0,0.00027397,2]
[322213652,1712877038813,-500.0,0.00027397,2]
[322213653,1712877038822,-500.0,0.00027397,2]
[322213654,1712877038832,-500.0,0.00027397,2]
[322213655,1712877038842,-573.99,0.00027397,2]
[322213656,1712877038851,-505.16217187,0.00027397,2]
[322213657,1712877038860,-500.0,0.00027397,2]
[322213658,1712877038869,-248.9946814,0.00027397,2]
[322213660,1712877038878,-500.0,0.00027397,2]
[322213662,1712877038887,-167.280133,0.00027397,2]
[322213664,1712877038896,-500.0,0.00027397,2]
[322213666,1712877038908,-500.0,0.00027397,2]
[322213668,1712877038918,-500.0,0.00027397,2]
[322213670,1712877038928,-500.0,0.00027397,2]
[322213672,1712877038938,-500.0,0.00027397,2]
[322213673,1712877038947,-500.0,0.00027397,2]
[322213675,1712877038956,-500.0,0.00027397,2]
[322213677,1712877038965,-500.0,0.00027397,2]
[322213679,1712877038975,-500.0,0.00027397,2]
[322213681,1712877038984,-500.0,0.00027397,2]
[322213683,1712877038994,-503.97973998,0.00027397,2]
[322213685,1712877039004,-500.0,0.00027397,2]
[322213687,1712877039014,-500.0,0.00027397,2]
[322213688,1712877039023,-500.0,0.00027397,2]
[322213689,1712877039032,-500.0,0.00027397,2]
[322213690,1712877039042,-500.0,0.00027397,2]
[322213691,1712877039052,-500.0,0.00027397,2]
[322213692,1712877039061,-500.0,0.00027397,2]
[322213693,1712877039070,-500.0,0.00027397,2]
[322213694,1712877039080,-500.0,0.00027397,2]
[322213695,1712877039091,-511.81432731,0.00027397,2]
[322213696,1712877039102,-500.0,0.00027397,2]
[322213697,1712877039113,-500.0,0.00027397,2]
[322213698,1712877039122,-513.23,0.00027397,2]
[322213699,1712877039132,-500.0,0.00027397,2]
[322213700,1712877039142,-500.0,0.00027397,2]
[322213701,1712877039151,-500.0,0.00027397,2]
[322213702,1712877039161,-500.0,0.00027397,2]
[322213703,1712877039171,-553.55,0.00027397,2]
[322213704,1712877039182,-500.0,0.00027397,2]
[322213705,1712877039191,-614.29,0.00027397,2]
[322213706,1712877039201,-500.0,0.00027397,2]
[322213707,1712877039210,-500.0,0.00027397,2]
[322213708,1712877039221,-500.0,0.00027397,2]
[322213709,1712877039231,-503.85222214,0.00027397,2]
[322213710,1712877039240,-1277.35,0.00027397,2]
[322213711,1712877039250,-500.0,0.00027397,2]
[322213712,1712877039259,-1529.98,0.00027397,2]
[322213713,1712877039269,-500.0,0.00027397,2]
[322213714,1712877039279,-500.0,0.00027397,2]
[322213715,1712877039289,-500.0,0.00027397,2]
[322213716,1712877039298,-500.0,0.00027397,2]
[322213717,1712877039309,-500.0,0.00027397,2]
[322213718,1712877039319,-500.0,0.00027397,2]
[322213719,1712877039328,-500.0,0.00027397,2]
[322213720,1712877039337,-500.0,0.00027397,2]
[322213721,1712877039347,-500.0,0.00027397,2]
[322213722,1712877039358,-500.0,0.00027397,2]
[322213723,1712877039368,-500.0,0.00027397,2]
[322213724,1712877039378,-500.0,0.00027397,2]
[322213725,1712877039387,-666.93,0.00027397,2]
[322213726,1712877039397,-1007.41,0.00027397,2]
[322213727,1712877039406,-500.0,0.00027397,2]
[322213728,1712877039417,-500.0,0.00027397,2]
[322213729,1712877039428,-500.0,0.00027397,2]
[322213730,1712877039438,-500.0,0.00027397,2]
[322213731,1712877039449,-542.88744001,0.00027397,2]
[322213732,1712877039458,-500.0,0.00027397,2]
[322213733,1712877039468,-782.22,0.00027397,2]
[322213734,1712877039478,-500.0,0.00027397,2]
[322213735,1712877039488,-590.26017285,0.00027397,2]
[322213736,1712877039498,-500.0,0.00027397,2]
[322213737,1712877039508,-500.0,0.00027397,2]
[322213738,1712877039518,-500.0,0.00027397,2]
[322213739,1712877039527,-701.73,0.00027397,2]
[322213740,1712877039537,-1433.56,0.00027397,2]
[322213741,1712877039546,-540.64,0.00027397,2]
[322213742,1712877039558,-908.22,0.00027397,2]
[322213743,1712877039567,-731.88,0.00027397,2]
[322213744,1712877039578,-500.0,0.00027397,2]
[322213745,1712877039587,-500.0,0.00027397,2]
[322213746,1712877039596,-500.0,0.00027397,2]
[322213747,1712877039607,-153.6023125,0.00027397,2]
[322213748,1712877039616,-500.0,0.00027397,2]
[322213749,1712877039626,-500.0,0.00027397,2]
[322213750,1712877039637,-500.0,0.00027397,2]
[322213751,1712877039647,-500.0,0.00027397,2]
[322213752,1712877039657,-340.35534432,0.00027397,2]
[322213753,1712877039666,-500.0,0.00027397,2]
[322213754,1712877039676,-1088.15,0.00027397,2]
[322213755,1712877039685,-500.0,0.00027397,2]
[322213756,1712877039695,-500.0,0.00027397,2]
[322213757,1712877039704,-500.0,0.00027397,2]
[322213758,1712877039713,-500.0,0.00027397,2]
[322213759,1712877039723,-500.0,0.00027397,2]
[322213760,1712877039732,-14492.49,0.00027397,2]
[322213761,1712877039741,-1134.8,0.00027397,2]
[322213762,1712877039751,-500.0,0.00027397,2]
[322213763,1712877039761,-500.0,0.00027397,2]
[322213764,1712877039770,-500.0,0.00027397,2]
[322213765,1712877039780,-500.0,0.00027397,2]
[322213766,1712877039789,-2878.14,0.00027397,2]
[322213767,1712877039798,-714.17,0.00027397,2]
[322213768,1712877039808,-500.0,0.00027397,2]
[322213769,1712877039816,-500.0,0.00027397,2]
[322213770,1712877039826,-500.0,0.00027397,2]
[322213771,1712877039835,-500.0,0.00027397,2]
[322213772,1712877039844,-500.0,0.00027397,2]
[322213773,1712877039853,-500.0,0.00027397,2]
[322213774,1712877039863,-500.0,0.00027397,2]
[322213775,1712877039873,-500.0,0.00027397,2]
[322213776,1712877039882,-500.0,0.00027397,2]
[322213777,1712877039891,-905.13,0.00027397,2]
[322213778,1712877039901,-500.0,0.00027397,2]
[322213779,1712877039910,-500.0,0.00027397,2]
[322213780,1712877039919,-500.0,0.00027397,2]
[322213781,1712877039928,-500.0,0.00027397,2]
[322213782,1712877039938,-500.0,0.00027397,2]
[322213783,1712877039947,-500.0,0.00027397,2]
[322213784,1712877039957,-500.0,0.00027397,2]
[322213785,1712877039966,-500.0,0.00027397,2]
[322213786,1712877039975,-500.0,0.00027397,2]
[322213787,1712877039984,-500.0,0.00027397,2]
[322213788,1712877039994,-500.0,0.00027397,2]
[322213789,1712877040005,-2044.88,0.00027397,2]
[322213790,1712877040014,-500.0,0.00027397,2]
[322213791,1712877040023,-500.0,0.00027397,2]
[322213792,1712877040032,-500.0,0.00027397,2]
[322213793,1712877040041,-511.67115905,0.00027397,2]
[322213794,1712877040050,-500.0,0.00027397,2]
[322213795,1712877040059,-500.0,0.00027397,2]
[322213796,1712877040068,-5808.16,0.00027397,2]
[322213797,1712877040077,-4487.94,0.00027397,2]
[322213798,1712877040086,-1353.46,0.00027397,2]
[322213799,1712877040181,-500.0,0.00027397,2]
[322213800,1712877040191,-500.0,0.00027397,2]
[322213801,1712877040200,-500.0,0.00027397,2]
[322213802,1712877040209,-500.0,0.00027397,2]
[322213803,1712877040218,-500.0,0.00027397,2]
[322213804,1712877040227,-500.0,0.00027397,2]
[322213805,1712877040236,-500.0,0.00027397,2]
[322213806,1712877040246,-1264.95,0.00027397,2]
[322213807,1712877040255,-500.0,0.00027397,2]
[322213808,1712877040264,-500.0,0.00027397,2]
[322213809,1712877040274,-500.0,0.00027397,2]
[322213810,1712877040283,-782.13,0.00027397,2]
[322213811,1712877040292,-11378.71,0.00027397,2]
[322213812,1712877040303,-500.0,0.00027397,2]
[322213813,1712877040312,-1114.5,0.00027397,2]
[322213814,1712877040322,-1057.05,0.00027397,2]
[322213815,1712877040331,-502.59411813,0.00027397,2]
[322213816,1712877040340,-500.0,0.00027397,2]
[322213817,1712877040349,-500.0,0.00027397,2]
[322213818,1712877040359,-2631.78,0.00027397,2]
[322213820,1712877040368,-500.0,0.00027397,2]
[322213821,1712877040378,-565.65845339,0.00027397,2]
[322213822,1712877040387,-500.0,0.00027397,2]
[322213823,1712877040396,-500.0,0.00027397,2]
[322213824,1712877040406,-731.93,0.00027397,2]
[322213825,1712877040416,-500.0,0.00027397,2]
[322213826,1712877040425,-502.78102773,0.00027397,2]
[322213827,1712877040436,-500.0,0.00027397,2]
[322213828,1712877040446,-500.0,0.00027397,2]
[322213829,1712877040456,-154.93802479,0.00027397,2]
[322213830,1712877040466,-500.0,0.00027397,2]
[322213831,1712877040475,-500.0,0.00027397,2]
[322213832,1712877040485,-1535.31,0.00027397,2]
[322213833,1712877040495,-2256.62,0.00027397,2]
[322213834,1712877040504,-500.0,0.00027397,2]
[322213835,1712877040513,-500.0,0.00027397,2]
[322213836,1712877040522,-513.31933967,0.00027397,2]
[322213837,1712877040531,-1325.52,0.00027397,2]
[322213838,1712877040541,-3733.46,0.00027397,2]
[322213839,1712877040551,-400.0,0.00027397,2]
[322213840,1712877040566,-166.666666,0.00027397,2]
[322213841,1712877040577,-158.57133418,0.00027434,2]
[322213842,1712877040587,-160.71867969,0.00027494,2]
[322213843,1712877040598,-158.57133418,0.00027571,2]
[322213844,1712877040608,-405.5849408,0.000276,2]
[322213845,1712877040617,-163.0521818,0.00027665,3]
[322213846,1712877040626,-255.27288194,0.00027669,2]
[322213847,1712877040636,-155.07668798,0.00027669,2]
[322213848,1712877040649,-155.52988827,0.00027669,2]
[322213849,1712877040659,-192.02096102,0.0002767,2]
[322213850,1712877040670,-500.0,0.00027671,2]
[322213851,1712877040681,-1859.96,0.00027671,2]
[322213852,1712877040690,-500.0,0.00027671,2]
[322213853,1712877040700,-500.0,0.00027671,2]
[322213854,1712877040709,-500.0,0.00027671,2]
[322213855,1712877040720,-500.0,0.00027671,2]
[322213856,1712877040730,-500.0,0.00027671,2]
[322213857,1712877040739,-393.75733556,0.00027671,2]
[322213858,1712877040748,-573.99,0.00027671,2]
[322213859,1712877040758,-151.0,0.00027671,2]
[322213860,1712877040767,-151.0,0.00027671,2]
[322213862,1712877040777,-500.0,0.00027671,2]
[322213864,1712877040786,-507.05941303,0.00027671,2]
[322213865,1712877040795,-500.0,0.00027671,2]
[322213866,1712877040804,-500.0,0.00027671,2]
[322213867,1712877040814,-162.724964,0.00027671,2]
[322213868,1712877040823,-162.724964,0.00027671,2]
[322213869,1712877040833,-325.520518,0.00027671,2]
[322213870,1712877040842,-325.520518,0.00027671,2]
[322213871,1712877040852,-500.0,0.00027671,2]
[322213872,1712877040862,-500.0,0.00027671,2]
[322213873,1712877040871,-500.0,0.00027671,2]
[322213874,1712877040880,-228.88905105,0.00027671,2]
[322213879,1712877043753,-271.11094895,0.00027671,2]
[322213880,1712877043763,-500.0,0.00027671,2]
[322213881,1712877043772,-500.0,0.00027671,2]
[322213882,1712877043781,-459.32823551,0.00027671,2]
[322213883,1712877043791,-603.433049,0.00027671,2]
[322213884,1712877043801,-500.0,0.00027671,2]
[322213885,1712877043810,-500.0,0.00027671,2]
[322213886,1712877043819,-603.433049,0.00027671,2]
[322213887,1712877043829,-500.0,0.00027671,2]
[322213888,1712877043838,-422.5377141,0.00027671,2]
[322213889,1712877043855,-77.4622859,0.00027671,2]
[322213890,1712877043864,-516.65577381,0.00027671,2]
[322213891,1712877043873,-124.82847007,0.00027671,2]
[322213899,1712877046723,-518.11,0.00027397,2]
[322213900,1712877046734,-500.0,0.00027397,2]
[322213901,1712877046744,-174.88886208,0.0002767,2]
[322213902,1712877046755,-181.47476793,0.00027671,2]
[322213903,1712877046766,-306.303238,0.00027671,2]
[322213904,1712877046775,-500.0,0.00027671,2]
[322213905,1712877046784,-151.0,0.00027671,2]
[322213906,1712877046793,-151.0,0.00027671,2]
[322213907,1712877046802,-500.0,0.00027671,2]
[322213908,1712877046811,-500.0,0.00027671,2]
[322213909,1712877046820,-513.23,0.00027671,2]
[322213910,1712877046829,-500.0,0.00027671,2]
[322213911,1712877046838,-500.0,0.00027671,2]
[322213912,1712877046848,-500.0,0.00027671,2]
[322213913,1712877046858,-553.55,0.00027671,2]
[322213914,1712877046866,-151.0,0.00027671,2]
[322213915,1712877046875,-151.0,0.00027671,2]
[322213916,1712877046884,-500.0,0.00027671,2]
[322213917,1712877046893,-614.29,0.00027671,2]
[322213918,1712877046903,-194.412542,0.00027671,2]
[322213919,1712877046912,-194.412542,0.00027671,2]
[322213920,1712877046921,-1277.35,0.00027671,2]
[322213921,1712877046930,-194.412542,0.00027671,2]
[322213922,1712877046939,-194.412542,0.00027671,2]
[322213923,1712877046948,-500.0,0.00027671,2]
[322213924,1712877046957,-1529.98,0.00027671,2]
[322213925,1712877046966,-500.0,0.00027671,2]
[322213926,1712877046975,-173.19220258,0.00027671,2]